bitfinex/quotes_SOLUSD_20220104
["timestamp","ask_amount","ask_price","bid_price","bid_amount"]
[1641301590699,1.5201,171.92,171.78,84.94087103]
[1641301590900,1.5201,171.92,171.79,1.42669368]
[1641301591100,1.5201,171.92,171.79,10.15669368]
[1641301591301,1.58655066,171.92,171.8,9.97656647]
[1641301591504,1.58655066,171.92,171.8,10.23656647]
[1641301591703,1.58655066,171.92,171.8,20.0721375]
[1641301591904,1.58655066,171.94,171.8,21.49883118]
[1641301592102,1.58655066,171.94,171.81,19.75006647]
[1641301592503,1.58655066,171.95,171.82,20.73883118]
[1641301592703,1.58655066,171.95,171.82,29.20883118]
[1641301592904,2.23484342,171.94,171.84,26.44071499]
[1641301593304,2.23484342,171.94,171.84,27.20071499]
[1641301593505,2.49484342,171.94,171.84,27.20071499]
[1641301594106,2.49484342,171.94,171.84,0.5]
[1641301594307,2.49484342,171.94,171.83,1.7886]
[1641301594507,2.49484342,171.94,171.83,1.2886]
[1641301594708,2.49484342,171.94,171.83,1.7886]
[1641301595838,2.49484342,171.94,171.83,2.0486]
[1641301596336,2.49484342,171.94,171.83,1.7886]
[1641301596736,2.49484342,171.94,171.83,2.0486]
[1641301598942,2.49484342,171.94,171.83,0.5]
[1641301599441,2.49484342,171.94,171.82,39.03844486]
[1641301600651,2.49484342,171.94,171.82,39.29844486]
[1641301601649,2.49484342,171.94,171.82,39.03844486]
[1641301603255,4.08139408,171.94,171.82,39.03844486]
[1641301603452,4.08139408,171.94,171.82,8.97]
[1641301603653,1.58655066,171.93,171.82,8.97]
[1641301604055,1.84655066,171.93,171.82,8.97]
[1641301604256,1.84655066,171.93,171.82,0.5]
[1641301604454,0.26,171.93,171.8,1.7853]
[1641301604659,0.26,171.93,171.8,1.2853]
[1641301604857,4.58139408,171.94,171.8,1.7853]
[1641301605057,27.32105066,171.93,171.8,1.7853]
[1641301605357,27.82105066,171.93,171.8,1.7853]
[1641301605562,1.58655066,171.92,171.8,1.7853]
[1641301605861,1.58655066,171.92,171.8,0.5]
[1641301606060,1.84655066,171.92,171.8,0.5]
[1641301606259,1.84655066,171.92,171.79,1.2497]
[1641301606497,1.84655066,171.92,171.79,1.7497]
[1641301607094,1.84655066,171.92,171.79,2.0097]
[1641301607293,1.84655066,171.92,171.79,1.7497]
[1641301610494,2.34655066,171.92,171.79,1.7497]
[1641301611495,1.2385,171.91,171.79,1.7497]
[1641301611898,1.4985,171.91,171.79,1.7497]
[1641301612699,3.58505066,171.91,171.79,1.7497]
[1641301613201,3.58505066,171.91,171.79,0.5]
[1641301613400,3.58505066,171.91,171.78,23.0249]
[1641301613604,3.58505066,171.91,171.78,0.5]
[1641301613899,3.58505066,171.91,171.77,1.764]
[1641301614400,1.58655066,171.9,171.77,1.764]
[1641301614600,1.84655066,171.9,171.77,1.764]
[1641301615100,1.58655066,171.89,171.77,1.764]
[1641301615301,2.63031494,171.88,171.77,1.764]
[1641301615501,4.13791494,171.88,171.77,1.764]
[1641301619510,79.0,171.68,171.42,27.96269939]
[1641301619710,8.47,171.67,171.5,10.0]
[1641301619910,8.47,171.67,171.54,12.13347305]
[1641301620111,8.73,171.67,171.48,8.5778]
[1641301620510,8.73,171.67,171.49,29.72244274]
[1641301621110,8.73,171.67,171.5,1.42669368]
[1641301622512,9.23,171.67,171.5,1.42669368]
[1641301623215,115.07,171.67,171.5,1.92669368]
[1641301624117,115.07,171.67,171.51,1.42669368]
[1641301624416,115.07,171.67,171.51,1.92669368]
[1641301624819,115.07,171.67,171.51,0.5]
[1641301625017,105.84,171.63,171.51,0.5]
[1641301625237,105.84,171.63,171.48,0.5]
[1641301625238,54.3505,171.62,171.48,0.5]
[1641301625434,136.7594,171.62,171.41,128.3918]
[1641301625635,137.0194,171.62,171.41,129.81849368]
[1641301625838,137.0194,171.62,171.42,33.07553591]
[1641301626034,137.0194,171.62,171.42,35.87035614]
[1641301626435,105.84,171.6,171.42,34.44366246]
[1641301626641,1.42669368,171.61,171.42,34.44366246]
[1641301626642,114.31,171.59,171.42,34.44366246]
[1641301626837,8.47,171.58,171.42,34.44366246]
[1641301627037,8.73,171.58,171.42,34.44366246]
[1641301627236,9.23,171.58,171.42,34.44366246]
[1641301627437,8.73,171.58,171.42,34.44366246]
[1641301627637,8.73,171.58,171.42,35.20366246]
[1641301628237,8.73,171.58,171.42,34.94366246]
[1641301628437,9.23,171.58,171.42,34.94366246]
[1641301630339,8.47,171.58,171.43,1.42669368]
[1641301630744,8.47,171.58,171.43,1.92669368]
[1641301630941,8.47,171.58,171.43,2.18669368]
[1641301632442,8.47,171.58,171.43,0.76]
[1641301632842,8.47,171.58,171.42,35.20366246]
[1641301633045,8.47,171.58,171.43,1.42669368]
[1641301633443,8.47,171.58,171.43,2.18669368]
[1641301634045,8.47,171.58,171.43,0.76]
[1641301634244,8.73,171.58,171.43,0.76]
[1641301634447,8.73,171.58,171.42,34.94366246]
[1641301635346,9.23,171.58,171.42,34.94366246]
[1641301635546,9.23,171.58,171.42,0.5]
[1641301635747,10.65669368,171.58,171.42,0.5]
[1641301635946,10.65669368,171.58,171.38,0.5]
[1641301635947,23.2029,171.57,171.38,0.5]
[1641301636147,8.47,171.56,171.38,0.5]
[1641301636350,8.97,171.56,171.37,9.1251578]
[1641301636550,9.23,171.56,171.38,30.06512822]
[1641301636751,1.2657,171.55,171.38,30.06512822]
[1641301637053,8.47,171.54,171.38,30.56512822]
[1641301637454,8.73,171.54,171.38,30.56512822]
[1641301638053,9.23,171.54,171.38,30.82512822]
[1641301640953,9.23,171.54,171.38,30.56512822]
[1641301641454,115.07,171.54,171.38,30.56512822]
[1641301641657,116.49669368,171.54,171.38,30.56512822]
[1641301641854,116.49669368,171.54,171.38,30.06512822]
[1641301642257,116.49669368,171.54,171.38,3.41837245]
[1641301643654,115.07,171.54,171.38,0.5]
[1641301643884,115.07,171.54,171.37,9.1251578]
[1641301644056,22.5964,171.53,171.37,9.1251578]
[1641301644256,8.47,171.52,171.37,9.1251578]
[1641301644458,8.73,171.52,171.37,9.1251578]
[1641301644656,9.23,171.52,171.37,9.1251578]
[1641301645658,10.5746,171.52,171.37,9.1251578]
[1641301646058,105.84,171.51,171.37,9.1251578]
[1641301646258,8.47,171.5,171.37,9.1251578]
[1641301646657,9.23,171.5,171.37,9.1251578]
[1641301646857,9.23,171.5,171.37,8.6251578]
[1641301648261,9.23,171.5,171.37,9.1251578]
[1641301648559,9.23,171.5,171.37,8.6251578]
[1641301651390,10.5046,171.5,171.37,8.6251578]
[1641301651990,9.7446,171.5,171.37,8.8851578]
[1641301652188,9.7446,171.5,171.38,29.68231387]
[1641301652388,9.7446,171.5,171.38,30.18231387]
[1641301652591,9.7446,171.5,171.38,30.44231387]
[1641301654490,10.0046,171.5,171.38,30.44231387]
[1641301655192,9.7446,171.5,171.38,30.44231387]
[1641301656394,10.0046,171.5,171.38,30.44231387]
[1641301657193,10.0046,171.5,171.38,30.18231387]
[1641301657801,9.7446,171.5,171.38,30.18231387]
[1641301658092,8.47,171.5,171.38,30.18231387]
[1641301658904,8.47,171.5,171.38,30.44231387]
[1641301659095,8.73,171.5,171.38,30.44231387]
[1641301660300,8.73,171.5,171.38,30.18231387]
[1641301660899,8.73,171.5,171.38,30.44231387]
[1641301662600,8.73,171.5,171.38,30.18231387]
[1641301663402,8.73,171.5,171.38,29.68231387]
[1641301665008,9.23,171.5,171.38,29.68231387]
[1641301667414,9.23,171.5,171.38,30.18231387]
[1641301668011,54.90907002,171.5,171.38,30.18231387]
[1641301668611,54.90907002,171.5,171.38,30.44231387]
[1641301669813,54.64907002,171.5,171.38,30.44231387]
[1641301671112,54.90907002,171.5,171.38,30.44231387]
[1641301672511,54.90907002,171.5,171.38,30.18231387]
[1641301677921,54.90907002,171.5,171.38,30.44231387]
[1641301678222,54.90907002,171.5,171.38,30.18231387]
[1641301679422,54.40907002,171.5,171.38,30.44231387]
[1641301680222,54.40907002,171.5,171.38,31.78981387]
[1641301680425,54.14907002,171.5,171.38,31.78981387]
[1641301681827,45.67907002,171.5,171.38,45.62881387]
[1641301682025,45.67907002,171.5,171.38,47.05550755]
[1641301682425,11.1066,171.56,171.38,47.05550755]
[1641301682627,11.1066,171.56,171.42,32.01302487]
[1641301682825,11.1066,171.56,171.43,23.822]
[1641301683026,11.1066,171.56,171.43,24.082]
[1641301683225,11.1066,171.56,171.43,24.582]
[1641301683938,11.1066,171.56,171.43,25.828]
[1641301684528,23.7371,171.55,171.43,25.828]
[1641301685951,23.9971,171.55,171.43,25.828]
[1641301686951,23.7371,171.55,171.43,25.828]
[1641301688354,23.9971,171.55,171.43,25.828]
[1641301690556,23.9971,171.55,171.43,25.568]
[1641301691759,8.47,171.56,171.43,26.99469368]
[1641301691956,10.05655066,171.58,171.43,34.12569368]
[1641301692559,8.47,171.58,171.43,34.12569368]
[1641301692858,8.47,171.58,171.43,42.87049368]
[1641301693556,8.73,171.58,171.43,42.87049368]
[1641301693959,8.73,171.58,171.43,33.86569368]
[1641301694859,8.73,171.58,171.43,26.99469368]
[1641301695459,8.73,171.58,171.43,27.25469368]
[1641301695858,8.47,171.58,171.43,27.25469368]
[1641301697160,8.73,171.58,171.43,26.99469368]
[1641301697360,76.5437,171.57,171.43,25.568]
[1641301697560,76.8037,171.57,171.43,25.568]
[1641301697763,22.73,171.56,171.43,25.568]
[1641301698162,22.99,171.56,171.43,25.568]
[1641301698562,22.99,171.56,171.43,25.828]
[1641301699763,22.99,171.56,171.43,27.25469368]
[1641301699963,22.99,171.56,171.43,25.828]
[1641301700165,31.46,171.56,171.43,25.828]
[1641301700367,31.96,171.56,171.43,0.5]
[1641301700765,31.96,171.56,171.42,25.83670795]
[1641301701167,1.3245,171.55,171.42,25.83670795]
[1641301701369,8.47,171.54,171.42,3.02450795]
[1641301701567,8.73,171.54,171.42,3.02450795]
[1641301701764,9.23,171.54,171.42,3.02450795]
[1641301702868,8.73,171.54,171.42,3.02450795]
[1641301704872,9.23,171.54,171.42,3.02450795]
[1641301706175,8.73,171.54,171.42,3.02450795]
[1641301709379,9.23,171.54,171.42,3.02450795]
[1641301710879,8.47,171.54,171.42,3.02450795]
[1641301711078,8.47,171.54,171.42,3.28450795]
[1641301711701,8.47,171.54,171.42,3.02450795]
[1641301712405,8.73,171.54,171.42,3.02450795]
[1641301715908,22.6403,171.53,171.42,3.02450795]
[1641301716109,31.3703,171.53,171.42,3.02450795]
[1641301719027,31.8703,171.53,171.42,3.02450795]
[1641301719212,31.3703,171.53,171.42,3.02450795]
[1641301721113,31.8703,171.53,171.42,3.02450795]
[1641301721917,31.8703,171.53,171.4,77.0383]
[1641301722715,1.3274,171.52,171.38,1.2599]
[1641301722918,8.47,171.51,171.39,2.78136073]
[1641301723318,9.23,171.51,171.39,3.28136073]
[1641301723517,22.7616,171.5,171.39,3.28136073]
[1641301723720,8.47,171.49,171.39,3.28136073]
[1641301723918,9.7354,171.49,171.39,3.28136073]
[1641301724118,9.9954,171.49,171.39,3.28136073]
[1641301725216,10.4954,171.49,171.39,3.28136073]
[1641301733053,9.9954,171.49,171.39,3.28136073]
[1641301734356,9.7354,171.49,171.39,31.18225251]
[1641301734557,9.7354,171.49,171.39,31.44225251]
[1641301734957,9.7354,171.49,171.39,31.18225251]
[1641301735462,9.9954,171.49,171.39,31.18225251]
[1641301737256,9.9954,171.49,171.39,32.60894619]
[1641301737863,8.47,171.49,171.39,32.60894619]
[1641301738066,22.7616,171.5,171.39,37.91994619]
[1641301738463,9.6925,171.53,171.39,37.91994619]
[1641301738665,9.6925,171.53,171.4,24.9209]
[1641301738864,9.6925,171.53,171.4,25.4209]
[1641301739063,9.6925,171.53,171.41,1.42669368]
[1641301739264,9.9525,171.53,171.42,2.38750944]
[1641301739464,9.9525,171.53,171.42,2.88750944]
[1641301739666,8.73,171.53,171.43,28.80973557]
[1641301739864,8.73,171.53,171.43,29.30973557]
[1641301740064,8.73,171.53,171.43,29.56973557]
[1641301740264,8.47,171.53,171.43,29.56973557]
[1641301741467,8.47,171.53,171.44,1.42669368]
[1641301741667,8.47,171.53,171.45,2.40080558]
[1641301741865,8.47,171.53,171.45,2.90080558]
[1641301742067,8.47,171.53,171.45,3.16080558]
[1641301745271,1.58655066,171.54,171.45,3.16080558]
[1641301745474,1.84655066,171.54,171.45,3.16080558]
[1641301747480,0.26,171.54,171.45,3.16080558]
[1641301747681,540.6790831,171.55,171.45,3.16080558]
[1641301748384,1.58655066,171.54,171.45,3.16080558]
[1641301748584,1.84655066,171.54,171.45,3.16080558]
[1641301749212,1.84655066,171.54,171.45,0.76]
[1641301749409,25.26105066,171.54,171.43,1.747]
[1641301749606,25.26105066,171.54,171.43,1.247]
[1641301749807,25.26105066,171.54,171.43,1.747]
[1641301750106,2.94395066,171.53,171.43,1.747]
[1641301750505,3.20395066,171.53,171.43,2.007]
[1641301750708,3.20395066,171.53,171.43,5.01722525]
[1641301753010,1.58655066,171.52,171.43,5.01722525]
[1641301753309,1.58655066,171.52,171.43,1.747]
[1641301753513,1.84655066,171.52,171.43,1.747]
[1641301754112,1.58655066,171.51,171.43,1.747]
[1641301754512,1.84655066,171.51,171.43,1.747]
[1641301754712,1.84655066,171.51,171.42,23.4173]
[1641301755512,1.84655066,171.51,171.4,2.5523]
[1641301755716,24.39495066,171.51,171.4,1.2746]
[1641301755916,8.47,171.5,171.37,8.6251578]
[1641301756117,9.8133,171.5,171.37,8.6251578]
[1641301756314,10.5733,171.5,171.37,8.6251578]
[1641301756713,24.7097,171.49,171.37,8.6251578]
[1641301756915,1.58655066,171.46,171.37,8.6251578]
[1641301757114,10.31655066,171.46,171.37,8.6251578]
[1641301757315,10.31655066,171.46,171.37,9.1251578]
[1641301757316,10.81655066,171.46,171.37,9.1251578]
[1641301757513,1.58655066,171.45,171.37,8.6251578]
[1641301757915,2.34655066,171.45,171.37,8.6251578]
[1641301758115,8.47,171.44,171.37,8.6251578]
[1641301758516,9.23,171.44,171.37,8.6251578]
[1641301759117,1.58655066,171.42,171.37,8.6251578]
[1641301759418,8.47,171.41,171.37,8.6251578]
[1641301759818,9.23,171.41,171.37,8.6251578]
[1641301762218,8.73,171.41,171.37,8.6251578]
[1641301766823,9.23,171.41,171.37,8.6251578]
[1641301769434,9.23,171.41,171.25,1.3463]
[1641301769435,27.0,171.4,171.25,1.3463]
[1641301769632,32.3577,171.39,171.25,1.3463]
[1641301769832,32.8577,171.39,171.26,2.39817418]
[1641301770032,33.1177,171.39,171.26,2.39817418]
[1641301770233,2.83005028,171.38,171.24,24.9925]
[1641301770433,8.47,171.37,171.24,25.4925]
[1641301770635,22.7877,171.36,171.24,26.91919368]
[1641301770834,31.7577,171.36,171.24,26.91919368]
[1641301771134,36.8007,171.36,171.2,1.42669368]
[1641301771335,36.8007,171.36,171.19,44.24213909]
[1641301771534,36.8007,171.36,171.21,23.2394]
[1641301771935,1.346,171.35,171.21,23.2394]
[1641301772138,8.47,171.34,171.21,23.2394]
[1641301772333,22.6603,171.33,171.21,23.2394]
[1641301772535,8.47,171.32,171.21,23.2394]
[1641301772736,9.7985,171.32,171.21,23.2394]
[1641301773035,10.5585,171.32,171.21,23.2394]
[1641301773435,10.5585,171.32,171.21,23.7394]
[1641301774036,9.7985,171.32,171.21,23.7394]
[1641301774235,9.7985,171.32,171.21,25.42609368]
[1641301775366,10.0585,171.32,171.21,25.42609368]
[1641301776570,10.0585,171.32,171.21,23.9994]
[1641301780875,10.0585,171.32,171.21,23.7394]
[1641301782277,10.0585,171.32,171.21,23.9994]
[1641301782477,10.0585,171.32,171.21,23.7394]
[1641301782678,10.5585,171.32,171.21,23.7394]
[1641301783382,10.5585,171.32,171.21,23.2394]
[1641301783880,10.5585,171.32,171.21,23.7394]
[1641301784283,10.5585,171.32,171.21,0.5]
[1641301784481,24.1721,171.31,171.2,26.1178]
[1641301784681,8.47,171.3,171.2,26.1178]
[1641301784883,8.97,171.3,171.2,25.8578]
[1641301785082,9.23,171.3,171.2,25.8578]
[1641301785885,10.4837,171.3,171.2,25.8578]
[1641301788886,10.4837,171.3,171.2,25.3578]
[1641301789088,10.4837,171.3,171.2,24.0938]
[1641301789285,10.4837,171.3,171.17,77.3583]
[1641301789487,22.7015,171.29,171.17,78.6191]
[1641301789687,31.1715,171.29,171.17,78.6191]
[1641301789890,31.9315,171.29,171.18,2.20735127]
[1641301790088,31.9315,171.29,171.18,24.42985127]
[1641301790290,8.73,171.29,171.18,25.18985127]
[1641301790490,8.47,171.29,171.19,1.42669368]
[1641301790893,8.47,171.29,171.19,2.18669368]
[1641301791091,8.47,171.29,171.19,31.4820367]
[1641301791292,8.47,171.29,171.19,37.0370367]
[1641301792397,78.1233,171.32,171.21,2.76441896]
[1641301792597,78.1233,171.32,171.21,3.02441896]
[1641301792798,1.59185028,171.34,171.22,1.42669368]
[1641301792999,1.59185028,171.34,171.22,25.30189368]
[1641301793199,1.59185028,171.34,171.24,2.62841275]
[1641301793400,1.59185028,171.34,171.24,9.53241275]
[1641301793601,1.59185028,171.34,171.24,11.21910643]
[1641301794020,8.47,171.36,171.24,9.53241275]
[1641301794223,0.26,171.34,171.24,9.53241275]
[1641301794425,8.73,171.36,171.24,3.12841275]
[1641301794626,23.0852,171.35,171.24,2.62841275]
[1641301795020,23.3452,171.35,171.24,2.62841275]
[1641301795221,24.5948,171.35,171.24,3.12841275]
[1641301795421,25.0948,171.35,171.24,3.12841275]
[1641301796121,23.0852,171.35,171.24,3.12841275]
[1641301796323,8.47,171.36,171.25,1.42669368]
[1641301796521,8.47,171.36,171.25,6.93969368]
[1641301796725,8.47,171.36,171.25,7.43969368]
[1641301797323,8.47,171.36,171.25,8.76699368]
[1641301797522,8.73,171.36,171.25,8.76699368]
[1641301797723,8.73,171.36,171.25,3.51399368]
[1641301797922,8.47,171.36,171.25,3.51399368]
[1641301798623,8.47,171.36,171.25,0.5]
[1641301798823,8.47,171.36,171.24,3.12841275]
[1641301799424,10.82185028,171.36,171.24,3.12841275]
[1641301799624,1.3188,171.35,171.24,3.12841275]
[1641301799825,8.47,171.34,171.24,3.12841275]
[1641301800024,8.73,171.34,171.24,3.12841275]
[1641301800427,9.23,171.34,171.24,3.12841275]
[1641301800626,9.23,171.34,171.16,8.47]
[1641301800827,99.29199368,171.33,171.23,0.5]
[1641301801026,8.47,171.32,171.23,0.5]
[1641301801431,9.23,171.32,171.19,1.8076]
[1641301801728,9.23,171.32,171.2,2.87269403]
[1641301801926,26.38355028,171.31,171.2,2.87269403]
[1641301802126,8.47,171.3,171.2,2.87269403]
[1641301802326,8.47,171.3,171.2,3.37269403]
[1641301802526,8.73,171.3,171.2,3.37269403]
[1641301802727,8.73,171.3,171.2,2.87269403]
[1641301803727,10.32185028,171.3,171.2,2.87269403]
[1641301804928,8.73,171.3,171.2,2.87269403]
[1641301805127,9.23,171.3,171.2,2.87269403]
[1641301805529,8.73,171.3,171.2,2.87269403]
[1641301805930,10.32185028,171.3,171.2,2.87269403]
[1641301806229,10.32185028,171.3,171.2,0.5]
[1641301806429,10.32185028,171.3,171.19,2.0793]
[1641301806628,24.4244,171.29,171.19,1.5793]
[1641301806831,24.4244,171.29,171.19,2.0793]
[1641301807030,24.6844,171.29,171.19,2.0793]
[1641301807231,26.0207,171.29,171.19,4.66754993]
[1641301807432,26.5207,171.29,171.19,4.66754993]
[1641301807732,26.0207,171.29,171.19,4.66754993]
[1641301809634,26.0207,171.29,171.19,4.40754993]
[1641301810734,0.26,171.29,171.19,4.40754993]
[1641301810937,0.26,171.29,171.19,4.66754993]
[1641301811133,10.32185028,171.3,171.19,4.66754993]
[1641301811337,10.32185028,171.3,171.19,1.8193]
[1641301811734,10.82185028,171.3,171.19,0.5]
[1641301811937,10.82185028,171.3,171.18,46.475]
[1641301812235,24.7132,171.29,171.19,1.3417]
[1641301812436,8.47,171.28,171.19,1.3417]
[1641301812635,8.47,171.28,171.19,1.6017]
[1641301812837,10.0573,171.28,171.19,1.6017]
[1641301813737,8.47,171.28,171.19,2.1017]
[1641301813938,1.59185028,171.3,171.19,29.23011006]
[1641301814140,1.59185028,171.3,171.21,2.94743542]
[1641301814340,1.59185028,171.32,171.21,3.44743542]
[1641301814543,1.59185028,171.32,171.21,3.70743542]
[1641301815041,1.59185028,171.31,171.21,3.70743542]
[1641301815241,1.85185028,171.31,171.21,3.44743542]
[1641301815741,1.85185028,171.31,171.21,4.70923542]
[1641301816042,0.26,171.31,171.21,4.70923542]
[1641301816241,1.85185028,171.31,171.21,4.70923542]
[1641301816441,1.59185028,171.31,171.21,4.70923542]
[1641301816641,1.85185028,171.31,171.21,4.96923542]
[1641301816843,0.26,171.31,171.21,4.70923542]
[1641301817342,26.14545028,171.32,171.21,4.70923542]
[1641301817742,25.64545028,171.32,171.21,4.70923542]
[1641301817942,24.38105028,171.32,171.21,4.70923542]
[1641301818144,24.38105028,171.32,171.21,4.96923542]
[1641301818643,22.7892,171.32,171.21,4.96923542]
[1641301818845,22.5292,171.32,171.21,4.96923542]
[1641301819944,22.7892,171.32,171.21,4.96923542]
[1641301820748,23.2892,171.32,171.21,4.96923542]
[1641301820945,24.88105028,171.32,171.21,4.96923542]
[1641301821545,1.59185028,171.31,171.21,4.96923542]
[1641301821946,2.35185028,171.31,171.21,4.96923542]
[1641301822148,1.85185028,171.31,171.21,4.96923542]
[1641301823046,0.26,171.31,171.21,4.96923542]
[1641301823247,22.7892,171.32,171.21,4.96923542]
[1641301825449,24.38105028,171.32,171.21,4.96923542]
[1641301826455,1.3125,171.31,171.21,4.96923542]
[1641301826851,1.5725,171.31,171.21,4.96923542]
[1641301827053,3.16435028,171.31,171.21,4.96923542]
[1641301829858,3.66435028,171.31,171.21,3.70743542]
[1641301830155,8.47,171.3,171.21,0.76]
[1641301830360,31.6763,171.3,171.21,0.26]
[1641301830557,31.9363,171.3,171.2,0.5]
[1641301831157,31.9363,171.3,171.2,2.35682433]
[1641301831362,1.59185028,171.29,171.2,2.85682433]
[1641301831559,1.85185028,171.29,171.2,2.85682433]
[1641301831757,0.26,171.29,171.2,2.85682433]
[1641301831958,0.26,171.29,171.2,3.11682433]
[1641301832157,34.81315028,171.3,171.2,3.11682433]
[1641301834662,34.81315028,171.3,171.2,2.85682433]
[1641301835886,1.59185028,171.29,171.2,2.85682433]
[1641301836086,1.85185028,171.29,171.2,2.85682433]
[1641301836489,0.26,171.29,171.2,3.11682433]
[1641301836687,25.84315028,171.3,171.2,2.85682433]
[1641301837589,1.59185028,171.3,171.2,2.85682433]
[1641301837791,1.59185028,171.3,171.21,1.42669368]
[1641301837990,1.59185028,171.31,171.21,1.68669368]
[1641301838191,1.59185028,171.31,171.21,26.48199368]
[1641301838389,2.82175028,171.35,171.22,1.42669368]
[1641301838593,2.82175028,171.35,171.23,3.53457929]
[1641301838990,2.82175028,171.35,171.23,4.03457929]
[1641301839991,3.08175028,171.35,171.23,4.03457929]
[1641301840393,22.6004,171.34,171.23,4.29457929]
[1641301840593,22.8604,171.34,171.23,4.29457929]
[1641301840990,1.59185028,171.33,171.23,4.29457929]
[1641301841490,1.85185028,171.33,171.23,4.29457929]
[1641301842889,1.59185028,171.33,171.23,4.29457929]
[1641301843491,24.19225028,171.34,171.23,4.29457929]
[1641301843990,24.45225028,171.34,171.23,4.29457929]
[1641301844191,24.45225028,171.34,171.23,2.98517929]
[1641301844390,24.45225028,171.34,171.23,2.72517929]
[1641301844892,24.95225028,171.34,171.23,2.72517929]
[1641301845090,8.47,171.33,171.23,2.72517929]
[1641301845293,10.06185028,171.33,171.23,2.72517929]
[1641301845493,12.11565028,171.33,171.23,2.72517929]
[1641301845693,11.61565028,171.33,171.23,2.72517929]
[1641301846093,12.11565028,171.33,171.23,2.72517929]
[1641301846296,11.61565028,171.33,171.23,2.72517929]
[1641301847395,12.11565028,171.33,171.23,2.72517929]
[1641301848597,1.59185028,171.32,171.23,2.72517929]
[1641301848997,1.85185028,171.32,171.23,2.98517929]
[1641301849199,0.26,171.32,171.23,2.98517929]
[1641301849598,1.5538,171.33,171.23,2.98517929]
[1641301851201,1.5538,171.33,171.24,25.72562199]
[1641301851401,0.26,171.33,171.24,26.22562199]
[1641301851602,24.45225028,171.34,171.24,26.48562199]
[1641301851802,22.8604,171.34,171.24,26.48562199]
[1641301852201,22.8604,171.34,171.24,27.76932199]
[1641301852403,22.8604,171.34,171.24,2.0437]
[1641301853704,22.8604,171.34,171.24,25.6098]
[1641301854806,24.45225028,171.34,171.24,25.6098]
[1641301856008,22.8604,171.34,171.24,25.6098]
[1641301856608,24.45225028,171.34,171.24,25.6098]
[1641301857007,24.45225028,171.34,171.24,25.3498]
[1641301857308,1.59185028,171.33,171.24,25.3498]
[1641301857507,1.85185028,171.33,171.24,25.3498]
[1641301858309,0.26,171.33,171.24,25.3498]
[1641301858508,25.77165028,171.34,171.24,25.3498]
[1641301858908,1.59185028,171.33,171.24,25.3498]
[1641301859108,1.85185028,171.33,171.24,25.3498]
[1641301860810,1.85185028,171.33,171.19,8.47]
[1641301861009,8.47,171.32,171.2,23.0479]
[1641301861437,9.23,171.32,171.2,23.0479]
[1641301861613,1.2808,171.31,171.2,23.3079]
[1641301861810,2.87265028,171.31,171.21,2.98589189]
[1641301862012,3.13265028,171.31,171.21,3.24589189]
[1641301862214,26.49165028,171.31,171.21,5.08259189]
[1641301863315,26.49165028,171.31,171.21,1.8367]
[1641301864516,26.49165028,171.31,171.22,2.99997272]
[1641301864916,26.49165028,171.31,171.22,3.49997272]
[1641301865717,1.59185028,171.3,171.22,3.49997272]
[1641301866017,1.59185028,171.3,171.22,2.99997272]
[1641301866018,1.85185028,171.3,171.22,2.99997272]
[1641301866616,2.35185028,171.3,171.22,2.99997272]
[1641301867014,1.85185028,171.3,171.22,2.99997272]
[1641301868715,0.26,171.3,171.22,3.49997272]
[1641301869115,24.8998,171.31,171.22,3.49997272]
[1641301871420,24.6398,171.31,171.22,3.49997272]
[1641301872621,24.8998,171.31,171.22,3.49997272]
[1641301873024,24.8998,171.31,171.22,3.75997272]
[1641301874025,24.8998,171.31,171.22,5.04197272]
[1641301876329,24.8998,171.31,171.22,1.782]
[1641301877254,24.8998,171.31,171.22,4.06094329]
[1641301877455,26.49165028,171.31,171.22,4.06094329]
[1641301878754,26.49165028,171.31,171.22,4.32094329]
[1641301879155,26.49165028,171.31,171.22,4.06094329]
[1641301879856,26.49165028,171.31,171.22,1.782]
[1641301880456,1.59185028,171.3,171.22,1.782]